[Event "December 12 Early 2023"]
[Site "https://www.chess.com"]
[Date "2023.12.12"]
[Round "4"]
[White "Chigaev, Maksim"]
[Black "Principe, Gerson"]
[Result "0-1"]
[Board "38"]
[TimeControl "180+1"]
[WhiteFideId "4108116"]
[BlackFideId "3804550"]
[WhiteElo "2928"]
[BlackElo "2600"]
[WhiteTeam "ESP"]
[BlackTeam "PER"]
[WhiteClock "0:00:06"]
[BlackClock "0:00:07"]

1. d4 {[%clk 0:03:00]}  Nf6 {[%clk 0:02:58]} 2. c4 {[%clk 0:03:01]}  e6 {[%clk 0:02:58]} 3. g4 {[%clk 0:03:01]}  Nxg4 {[%clk 0:02:46]} 4. e4 {[%clk 0:03:00]}  Qh4 {[%clk 0:02:31]} 5. Qe2 {[%clk 0:02:58]}  Nc6 {[%clk 0:02:13]} 6. Nf3 {[%clk 0:02:54]}  Qd8 {[%clk 0:02:02]} 7. h3 {[%clk 0:02:41]}  Nf6 {[%clk 0:02:00]} 8. e5 {[%clk 0:02:37]}  Ng8 {[%clk 0:01:59]} 9. Nc3 {[%clk 0:02:37]}  d6 {[%clk 0:01:58]} 10. Bd2 {[%clk 0:02:25]}  Nge7 {[%clk 0:01:55]} 11. exd6 {[%clk 0:02:23]}  cxd6 {[%clk 0:01:56]} 12. O-O-O {[%clk 0:02:23]}  d5 {[%clk 0:01:56]} 13. Rg1 {[%clk 0:02:19]}  h6 {[%clk 0:01:45]} 14. Kb1 {[%clk 0:02:18]}  g6 {[%clk 0:01:32]} 15. Bf4 {[%clk 0:01:40]}  a6 {[%clk 0:01:28]} 16. Qc2 {[%clk 0:01:34]}  Bg7 {[%clk 0:01:26]} 17. a3 {[%clk 0:01:32]}  Bd7 {[%clk 0:00:58]} 18. h4 {[%clk 0:01:31]}  dxc4 {[%clk 0:00:52]} 19. Bxc4 {[%clk 0:01:24]}  Rc8 {[%clk 0:00:51]} 20. d5 {[%clk 0:01:23]}  exd5 {[%clk 0:00:46]} 21. Bxd5 {[%clk 0:01:21]}  O-O {[%clk 0:00:45]} 22. Rxg6 {[%clk 0:01:13]}  Nxg6 {[%clk 0:00:42]} 23. Qxg6 {[%clk 0:01:13]}  Ne7 {[%clk 0:00:40]} 24. Qg2 {[%clk 0:00:54]}  Nxd5 {[%clk 0:00:37]} 25. Rxd5 {[%clk 0:00:51]}  Rxc3 {[%clk 0:00:21]} 26. Bxh6 {[%clk 0:00:17]}  Qf6 {[%clk 0:00:20]} 27. bxc3 {[%clk 0:00:05]}  Bf5+ {[%clk 0:00:16]} 28. Ka2 {[%clk 0:00:05]}  Be6 {[%clk 0:00:12]} 29. Bxg7 {[%clk 0:00:03]}  Qxg7 {[%clk 0:00:13]} 30. Qxg7+ {[%clk 0:00:02]}  Kxg7 {[%clk 0:00:14]} 31. c4 {[%clk 0:00:03]}  Bxd5 {[%clk 0:00:13]} 32. cxd5 {[%clk 0:00:04]}  Rd8 {[%clk 0:00:14]} 33. Kb3 {[%clk 0:00:05]}  Rxd5 {[%clk 0:00:14]} 34. Kc4 {[%clk 0:00:05]}  Rf5 {[%clk 0:00:14]} 35. Nd4 {[%clk 0:00:03]}  Rxf2 {[%clk 0:00:14]} 36. a4 {[%clk 0:00:04]}  b5+ {[%clk 0:00:12]} 37. axb5 {[%clk 0:00:04]}  axb5+ {[%clk 0:00:13]} 38. Nxb5 {[%clk 0:00:04]}  Rf4+ {[%clk 0:00:13]} 39. Kd5 {[%clk 0:00:05]}  Rxh4 {[%clk 0:00:14]} 40. Nd6 {[%clk 0:00:06]}  Rh5+ {[%clk 0:00:15]} 41. Ke4 {[%clk 0:00:06]}  Ra5 {[%clk 0:00:14]} 42. Kf4 {[%clk 0:00:07]}  Kg6 {[%clk 0:00:12]} 43. Nc8 {[%clk 0:00:07]}  Ra4+ {[%clk 0:00:11]} 44. Ke5 {[%clk 0:00:08]}  f6+ {[%clk 0:00:11]} 45. Kd5 {[%clk 0:00:08]}  f5 {[%clk 0:00:11]} 46. Nb6 {[%clk 0:00:05]}  Ra1 {[%clk 0:00:10]} 47. Nc4 {[%clk 0:00:04]}  Kg5 {[%clk 0:00:10]} 48. Kd4 {[%clk 0:00:04]}  Kg4 {[%clk 0:00:09]} 49. Ne3+ {[%clk 0:00:04]}  Kg5 {[%clk 0:00:09]} 50. Nd5 {[%clk 0:00:04]}  Rd1+ {[%clk 0:00:09]} 51. Ke5 {[%clk 0:00:04]}  Rxd5+ {[%clk 0:00:10]} 52. Kxd5 {[%clk 0:00:05]}  Kg4 {[%clk 0:00:10]} 53. Kd4 {[%clk 0:00:06]}  Kg3 {[%clk 0:00:07]} 54. Kd3 {[%clk 0:00:06]}  f4 {[%clk 0:00:07]} 55. Ke2 {[%clk 0:00:06]}  Kg2 {[%clk 0:00:07]} 0-1

[Event "December 12 Early 2023"]
[Site "https://www.chess.com"]
[Date "2023.12.12"]
[Round "4"]
[White "Al-Tarboush, Ward"]
[Black "Kamsky, Gata"]
[Result "1-0"]
[Board "39"]
[TimeControl "180+1"]
[WhiteFideId "7601450"]
[BlackFideId "2000024"]
[WhiteElo "2600"]
[BlackElo "2912"]
[WhiteTeam "NOR"]
[BlackTeam "USA"]
[WhiteClock "0:00:12"]
[BlackClock "0:00:00"]

1. e4 {[%clk 0:03:00]}  g6 {[%clk 0:02:57]} 2. d4 {[%clk 0:03:00]}  Bg7 {[%clk 0:02:57]} 3. Nc3 {[%clk 0:03:00]}  d6 {[%clk 0:02:57]} 4. Be3 {[%clk 0:03:00]}  a6 {[%clk 0:02:56]} 5. Qd2 {[%clk 0:02:56]}  b5 {[%clk 0:02:56]} 6. h4 {[%clk 0:02:50]}  h5 {[%clk 0:02:55]} 7. Nf3 {[%clk 0:02:50]}  Nf6 {[%clk 0:02:51]} 8. Ng5 {[%clk 0:02:47]}  Ng4 {[%clk 0:02:45]} 9. a4 {[%clk 0:02:37]}  b4 {[%clk 0:02:42]} 10. Nd5 {[%clk 0:02:35]}  a5 {[%clk 0:02:40]} 11. Bc4 {[%clk 0:02:34]}  e6 {[%clk 0:02:39]} 12. f3 {[%clk 0:02:09]}  Nxe3 {[%clk 0:02:38]} 13. Nxe3 {[%clk 0:02:10]}  Qf6 {[%clk 0:02:35]} 14. O-O-O {[%clk 0:02:04]}  Nc6 {[%clk 0:02:33]} 15. Bb5 {[%clk 0:01:34]}  Bd7 {[%clk 0:02:32]} 16. e5 {[%clk 0:01:32]}  dxe5 {[%clk 0:01:28]} 17. dxe5 {[%clk 0:01:32]}  Qe7 {[%clk 0:01:16]} 18. Qxd7+ {[%clk 0:01:32]}  Qxd7 {[%clk 0:01:15]} 19. Rxd7 {[%clk 0:01:33]}  Kxd7 {[%clk 0:01:15]} 20. Rd1+ {[%clk 0:01:34]}  Ke7 {[%clk 0:01:15]} 21. Bxc6 {[%clk 0:01:34]}  Rad8 {[%clk 0:01:15]} 22. f4 {[%clk 0:01:27]}  Rxd1+ {[%clk 0:01:14]} 23. Kxd1 {[%clk 0:01:28]}  Rd8+ {[%clk 0:01:10]} 24. Ke2 {[%clk 0:01:28]}  f6 {[%clk 0:01:10]} 25. Nf3 {[%clk 0:01:20]}  fxe5 {[%clk 0:01:09]} 26. fxe5 {[%clk 0:01:17]}  Bh6 {[%clk 0:01:00]} 27. Nc4 {[%clk 0:01:16]}  Rf8 {[%clk 0:00:33]} 28. Nxa5 {[%clk 0:01:12]}  Rf4 {[%clk 0:00:28]} 29. b3 {[%clk 0:01:10]}  Rg4 {[%clk 0:00:27]} 30. Kf1 {[%clk 0:01:03]}  Be3 {[%clk 0:00:13]} 31. Nc4 {[%clk 0:01:02]}  Ba7 {[%clk 0:00:13]} 32. a5 {[%clk 0:01:02]}  Rf4 {[%clk 0:00:12]} 33. a6 {[%clk 0:01:02]}  Rf8 {[%clk 0:00:11]} 34. Bb7 {[%clk 0:01:02]}  Kd7 {[%clk 0:00:10]} 35. Na5 {[%clk 0:01:02]}  c5 {[%clk 0:00:08]} 36. Nc6 {[%clk 0:00:58]}  Bb6 {[%clk 0:00:08]} 37. a7 {[%clk 0:00:42]}  Bxa7 {[%clk 0:00:08]} 38. Nxa7 {[%clk 0:00:43]}  Kc7 {[%clk 0:00:08]} 39. Be4 {[%clk 0:00:42]}  Kb6 {[%clk 0:00:09]} 40. Nc6 {[%clk 0:00:43]}  Rf4 {[%clk 0:00:09]} 41. Bxg6 {[%clk 0:00:36]}  Kxc6 {[%clk 0:00:09]} 42. Bxh5 {[%clk 0:00:36]}  c4 {[%clk 0:00:10]} 43. bxc4 {[%clk 0:00:35]}  Rxc4 {[%clk 0:00:09]} 44. Bg6 {[%clk 0:00:35]}  Kd7 {[%clk 0:00:08]} 45. h5 {[%clk 0:00:35]}  Ke7 {[%clk 0:00:08]} 46. h6 {[%clk 0:00:32]}  Kf8 {[%clk 0:00:07]} 47. Bd3 {[%clk 0:00:32]}  Rg4 {[%clk 0:00:07]} 48. Kf2 {[%clk 0:00:29]}  Kg8 {[%clk 0:00:07]} 49. g3 {[%clk 0:00:25]}  Kh8 {[%clk 0:00:07]} 50. Nh4 {[%clk 0:00:24]}  Rg5 {[%clk 0:00:07]} 51. h7 {[%clk 0:00:20]}  Kg7 {[%clk 0:00:07]} 52. Kf3 {[%clk 0:00:20]}  Kh8 {[%clk 0:00:05]} 53. Kf4 {[%clk 0:00:20]}  Rg7 {[%clk 0:00:05]} 54. g4 {[%clk 0:00:19]}  Rf7+ {[%clk 0:00:05]} 55. Kg5 {[%clk 0:00:18]}  Kg7 {[%clk 0:00:05]} 56. Be4 {[%clk 0:00:14]}  Rf2 {[%clk 0:00:05]} 57. Kh5 {[%clk 0:00:13]}  Re2 {[%clk 0:00:04]} 58. Bd3 {[%clk 0:00:13]}  Rh2 {[%clk 0:00:04]} 59. g5 {[%clk 0:00:13]}  Rh1 {[%clk 0:00:04]} 60. g6 {[%clk 0:00:13]}  Rh3 {[%clk 0:00:04]} 61. Kg4 {[%clk 0:00:13]}  Rh1 {[%clk 0:00:00]} 62. Nf3 {[%clk 0:00:12]} 1-0

[Event "December 12 Early 2023"]
[Site "https://www.chess.com"]
[Date "2023.12.12"]
[Round "4"]
[White "Durarbayli, Vasif"]
[Black "Lund, Gunnar"]
[Result "0-1"]
[Board "40"]
[TimeControl "180+1"]
[WhiteFideId "13402935"]
[BlackFideId "1520814"]
[WhiteElo "2910"]
[BlackElo "2599"]
[WhiteTeam "AZE"]
[BlackTeam "NOR"]
[WhiteClock "0:00:02"]
[BlackClock "0:00:16"]

1. c4 {[%clk 0:02:59]}  d6 {[%clk 0:03:00]} 2. Nc3 {[%clk 0:02:59]}  e5 {[%clk 0:02:56]} 3. d4 {[%clk 0:02:58]}  exd4 {[%clk 0:02:50]} 4. Qxd4 {[%clk 0:02:59]}  Nc6 {[%clk 0:02:50]} 5. Qd2 {[%clk 0:02:59]}  g6 {[%clk 0:02:50]} 6. b3 {[%clk 0:02:59]}  Bg7 {[%clk 0:02:51]} 7. Bb2 {[%clk 0:03:00]}  Nge7 {[%clk 0:02:52]} 8. h4 {[%clk 0:02:57]}  Rg8 {[%clk 0:02:09]} 9. h5 {[%clk 0:02:55]}  Be6 {[%clk 0:02:09]} 10. Nf3 {[%clk 0:02:50]}  Qd7 {[%clk 0:02:09]} 11. Ng5 {[%clk 0:02:50]}  O-O-O {[%clk 0:02:05]} 12. h6 {[%clk 0:02:36]}  Bxc3 {[%clk 0:02:00]} 13. Bxc3 {[%clk 0:02:35]}  d5 {[%clk 0:01:59]} 14. Nxh7 {[%clk 0:02:26]}  d4 {[%clk 0:01:57]} 15. Bb2 {[%clk 0:02:21]}  Rh8 {[%clk 0:01:50]} 16. Nf6 {[%clk 0:02:09]}  Qd6 {[%clk 0:01:50]} 17. e4 {[%clk 0:01:17]}  Qe5 {[%clk 0:01:37]} 18. Nd5 {[%clk 0:01:14]}  Nxd5 {[%clk 0:01:31]} 19. cxd5 {[%clk 0:01:14]}  Qxe4+ {[%clk 0:01:32]} 20. Qe2 {[%clk 0:01:14]}  Qxd5 {[%clk 0:01:32]} 21. O-O-O {[%clk 0:01:13]}  Nb4 {[%clk 0:01:23]} 22. Bxd4 {[%clk 0:01:03]}  Bf5 {[%clk 0:01:08]} 23. Bxh8 {[%clk 0:00:38]}  Qc5+ {[%clk 0:00:56]} 24. Kb2 {[%clk 0:00:22]}  Rxh8 {[%clk 0:00:53]} 25. Rh4 {[%clk 0:00:14]}  Nd3+ {[%clk 0:00:45]} 26. Rxd3 {[%clk 0:00:14]}  Bxd3 {[%clk 0:00:45]} 27. Qg4+ {[%clk 0:00:07]}  Bf5 {[%clk 0:00:44]} 28. Qd4 {[%clk 0:00:06]}  Qxd4+ {[%clk 0:00:43]} 29. Rxd4 {[%clk 0:00:06]}  Rxh6 {[%clk 0:00:44]} 30. Bc4 {[%clk 0:00:05]}  Rh2 {[%clk 0:00:39]} 31. Bd5 {[%clk 0:00:06]}  c6 {[%clk 0:00:39]} 32. Bf3 {[%clk 0:00:07]}  Rh1 {[%clk 0:00:38]} 33. g4 {[%clk 0:00:06]}  Rf1 {[%clk 0:00:38]} 34. Rd2 {[%clk 0:00:04]}  Be6 {[%clk 0:00:37]} 35. Kc3 {[%clk 0:00:03]}  Kc7 {[%clk 0:00:36]} 36. Kd3 {[%clk 0:00:02]}  Rg1 {[%clk 0:00:37]} 37. Ke3 {[%clk 0:00:02]}  Bxg4 {[%clk 0:00:37]} 38. Be4 {[%clk 0:00:02]}  Re1+ {[%clk 0:00:34]} 39. Kf4 {[%clk 0:00:02]}  Be6 {[%clk 0:00:30]} 40. f3 {[%clk 0:00:03]}  Rh1 {[%clk 0:00:28]} 41. Kg5 {[%clk 0:00:03]}  Re1 {[%clk 0:00:27]} 42. Kf6 {[%clk 0:00:03]}  Re3 {[%clk 0:00:26]} 43. Rh2 {[%clk 0:00:02]}  Bd5 {[%clk 0:00:25]} 44. Bxd5 {[%clk 0:00:03]}  cxd5 {[%clk 0:00:26]} 45. f4 {[%clk 0:00:03]}  Rf3 {[%clk 0:00:20]} 46. Rh4 {[%clk 0:00:03]}  Kd6 {[%clk 0:00:21]} 47. Kxf7 {[%clk 0:00:01]}  g5 {[%clk 0:00:21]} 48. Rh6+ {[%clk 0:00:02]}  Kc5 {[%clk 0:00:21]} 49. Ke6 {[%clk 0:00:03]}  Rxf4 {[%clk 0:00:20]} 50. Rh7 {[%clk 0:00:03]}  Re4+ {[%clk 0:00:20]} 51. Kf5 {[%clk 0:00:03]}  Kc6 {[%clk 0:00:19]} 52. Kxg5 {[%clk 0:00:03]}  Re2 {[%clk 0:00:19]} 53. a4 {[%clk 0:00:02]}  Re3 {[%clk 0:00:19]} 54. b4 {[%clk 0:00:02]}  Ra3 {[%clk 0:00:19]} 55. b5+ {[%clk 0:00:03]}  Kb6 {[%clk 0:00:19]} 56. Rh4 {[%clk 0:00:03]}  Kc5 {[%clk 0:00:18]} 57. Kf5 {[%clk 0:00:03]}  Re3 {[%clk 0:00:18]} 58. Rh7 {[%clk 0:00:03]}  Re4 {[%clk 0:00:17]} 59. Rxb7 {[%clk 0:00:03]}  Rxa4 {[%clk 0:00:17]} 60. Ke5 {[%clk 0:00:03]}  Re4+ {[%clk 0:00:17]} 61. Kf5 {[%clk 0:00:04]}  Re1 {[%clk 0:00:18]} 62. Rxa7 {[%clk 0:00:03]}  Kxb5 {[%clk 0:00:18]} 63. Rc7 {[%clk 0:00:04]}  d4 {[%clk 0:00:17]} 64. Kf4 {[%clk 0:00:04]}  Kb4 {[%clk 0:00:17]} 65. Kf3 {[%clk 0:00:04]}  d3 {[%clk 0:00:17]} 66. Rd7 {[%clk 0:00:04]}  Kc3 {[%clk 0:00:17]} 67. Rc7+ {[%clk 0:00:04]}  Kd2 {[%clk 0:00:17]} 68. Kf2 {[%clk 0:00:05]}  Re2+ {[%clk 0:00:17]} 69. Kf3 {[%clk 0:00:05]}  Re8 {[%clk 0:00:18]} 70. Kf2 {[%clk 0:00:02]}  Rf8+ {[%clk 0:00:18]} 71. Kg2 {[%clk 0:00:02]}  Kd1 {[%clk 0:00:17]} 72. Rd7 {[%clk 0:00:02]}  d2 {[%clk 0:00:17]} 73. Rc7 {[%clk 0:00:03]}  Rf5 {[%clk 0:00:16]} 74. Kg3 {[%clk 0:00:02]}  Ke2 {[%clk 0:00:16]} 75. Re7+ {[%clk 0:00:02]}  Kd3 {[%clk 0:00:16]} 76. Rd7+ {[%clk 0:00:03]}  Ke3 {[%clk 0:00:17]} 77. Re7+ {[%clk 0:00:04]}  Kd4 {[%clk 0:00:17]} 78. Kg4 {[%clk 0:00:02]}  Rd5 {[%clk 0:00:16]} 0-1

[Event "December 12 Early 2023"]
[Site "https://www.chess.com"]
[Date "2023.12.12"]
[Round "4"]
[White "Indjic, Aleksandar"]
[Black "Manukian, Artak"]
[Result "1-0"]
[Board "42"]
[TimeControl "180+1"]
[WhiteFideId "911925"]
[BlackFideId "13301373"]
[WhiteElo "2904"]
[BlackElo "2595"]
[WhiteTeam "SRB"]
[BlackTeam "ARM"]
[WhiteClock "0:02:26"]
[BlackClock "0:01:58"]

1. d4 {[%clk 0:02:55]}  d5 {[%clk 0:02:59]} 2. c4 {[%clk 0:02:54]}  dxc4 {[%clk 0:02:59]} 3. Nf3 {[%clk 0:02:54]}  Nf6 {[%clk 0:02:58]} 4. Qa4+ {[%clk 0:02:54]}  Nbd7 {[%clk 0:02:57]} 5. Nc3 {[%clk 0:02:53]}  c5 {[%clk 0:02:51]} 6. dxc5 {[%clk 0:02:51]}  e6 {[%clk 0:02:50]} 7. c6 {[%clk 0:02:43]}  bxc6 {[%clk 0:02:49]} 8. Qxc4 {[%clk 0:02:42]}  c5 {[%clk 0:02:45]} 9. e4 {[%clk 0:02:41]}  Bb7 {[%clk 0:02:37]} 10. Bf4 {[%clk 0:02:39]}  Be7 {[%clk 0:02:34]} 11. O-O-O {[%clk 0:02:39]}  Qa5 {[%clk 0:02:33]} 12. Qb5 {[%clk 0:02:37]}  Qxb5 {[%clk 0:02:27]} 13. Bxb5 {[%clk 0:02:38]}  a6 {[%clk 0:02:21]} 14. Ba4 {[%clk 0:02:33]}  Bc8 {[%clk 0:02:16]} 15. Ne5 {[%clk 0:02:31]}  Ra7 {[%clk 0:02:10]} 16. g4 {[%clk 0:02:27]}  h6 {[%clk 0:02:09]} 17. h4 {[%clk 0:02:27]}  O-O {[%clk 0:01:58]} 18. Nc6 {[%clk 0:02:26]} 1-0

[Event "December 12 Early 2023"]
[Site "https://www.chess.com"]
[Date "2023.12.12"]
[Round "4"]
[White "Saravana, Krishnan P."]
[Black "Rasulov, Vugar"]
[Result "1-0"]
[Board "43"]
[TimeControl "180+1"]
[WhiteFideId "5018382"]
[BlackFideId "13402390"]
[WhiteElo "2586"]
[BlackElo "2902"]
[WhiteTeam "IND"]
[BlackTeam "AZE"]
[WhiteClock "0:00:45"]
[BlackClock "0:00:00"]

1. e4 {[%clk 0:03:00]}  c5 {[%clk 0:02:59]} 2. Nf3 {[%clk 0:03:00]}  e6 {[%clk 0:03:00]} 3. d4 {[%clk 0:02:58]}  cxd4 {[%clk 0:03:00]} 4. Nxd4 {[%clk 0:02:59]}  a6 {[%clk 0:03:00]} 5. Bd3 {[%clk 0:02:57]}  Bc5 {[%clk 0:02:58]} 6. Nb3 {[%clk 0:02:57]}  Ba7 {[%clk 0:02:59]} 7. Qe2 {[%clk 0:02:57]}  d6 {[%clk 0:02:58]} 8. Be3 {[%clk 0:02:57]}  Nf6 {[%clk 0:02:56]} 9. Nc3 {[%clk 0:02:57]}  O-O {[%clk 0:02:56]} 10. O-O {[%clk 0:02:55]}  b5 {[%clk 0:02:55]} 11. Bxa7 {[%clk 0:02:49]}  Rxa7 {[%clk 0:02:56]} 12. f4 {[%clk 0:02:47]}  b4 {[%clk 0:02:51]} 13. Qf2 {[%clk 0:02:44]}  Nc6 {[%clk 0:02:40]} 14. Ne2 {[%clk 0:02:44]}  Rc7 {[%clk 0:02:18]} 15. Kh1 {[%clk 0:02:42]}  a5 {[%clk 0:02:14]} 16. Qh4 {[%clk 0:02:34]}  e5 {[%clk 0:02:03]} 17. Nd2 {[%clk 0:02:29]}  Ng4 {[%clk 0:01:53]} 18. Qg3 {[%clk 0:02:27]}  exf4 {[%clk 0:01:38]} 19. Nxf4 {[%clk 0:02:27]}  Nge5 {[%clk 0:01:34]} 20. Nd5 {[%clk 0:02:27]}  Ra7 {[%clk 0:01:27]} 21. Nc4 {[%clk 0:02:16]}  f6 {[%clk 0:01:24]} 22. Nce3 {[%clk 0:02:14]}  Be6 {[%clk 0:01:22]} 23. Nf4 {[%clk 0:02:13]}  Bc8 {[%clk 0:01:11]} 24. Rad1 {[%clk 0:02:12]}  Kh8 {[%clk 0:01:07]} 25. Bc4 {[%clk 0:02:08]}  g5 {[%clk 0:00:43]} 26. Ne6 {[%clk 0:02:04]}  Bxe6 {[%clk 0:00:43]} 27. Bxe6 {[%clk 0:02:05]}  a4 {[%clk 0:00:38]} 28. Nf5 {[%clk 0:02:00]}  Qe8 {[%clk 0:00:25]} 29. Rxd6 {[%clk 0:01:54]}  a3 {[%clk 0:00:20]} 30. bxa3 {[%clk 0:01:51]}  Rxa3 {[%clk 0:00:20]} 31. Bb3 {[%clk 0:01:51]}  Na5 {[%clk 0:00:18]} 32. Rfd1 {[%clk 0:01:46]}  Nxb3 {[%clk 0:00:18]} 33. axb3 {[%clk 0:01:44]}  Ng6 {[%clk 0:00:19]} 34. Qd3 {[%clk 0:01:24]}  Ra5 {[%clk 0:00:15]} 35. Rd8 {[%clk 0:01:20]}  Qf7 {[%clk 0:00:13]} 36. Rd7 {[%clk 0:01:19]}  Qg8 {[%clk 0:00:07]} 37. Qd4 {[%clk 0:01:17]}  Re5 {[%clk 0:00:06]} 38. Qxb4 {[%clk 0:01:17]}  Rfe8 {[%clk 0:00:06]} 39. Nd6 {[%clk 0:01:12]}  R8e7 {[%clk 0:00:04]} 40. Rd8 {[%clk 0:01:09]}  Nf8 {[%clk 0:00:02]} 41. Nf5 {[%clk 0:01:06]}  Re8 {[%clk 0:00:03]} 42. Rxe8 {[%clk 0:01:04]}  Rxe8 {[%clk 0:00:03]} 43. Qc3 {[%clk 0:01:02]}  Qe6 {[%clk 0:00:03]} 44. Rd6 {[%clk 0:00:56]}  Qe5 {[%clk 0:00:04]} 45. Qxe5 {[%clk 0:00:55]}  Rxe5 {[%clk 0:00:05]} 46. Rd4 {[%clk 0:00:51]}  Kg8 {[%clk 0:00:04]} 47. b4 {[%clk 0:00:50]}  Ne6 {[%clk 0:00:05]} 48. Rc4 {[%clk 0:00:48]}  Nf4 {[%clk 0:00:04]} 49. g3 {[%clk 0:00:48]}  Nh3 {[%clk 0:00:04]} 50. Kg2 {[%clk 0:00:48]}  g4 {[%clk 0:00:04]} 51. Nh6+ {[%clk 0:00:48]}  Kg7 {[%clk 0:00:05]} 52. Nxg4 {[%clk 0:00:48]}  Rh5 {[%clk 0:00:05]} 53. Rc7+ {[%clk 0:00:45]}  Kg6 {[%clk 0:00:05]} 54. Rc6 {[%clk 0:00:46]}  Ng5 {[%clk 0:00:00]} 55. Nxf6 {[%clk 0:00:45]} 1-0

[Event "December 12 Early 2023"]
[Site "https://www.chess.com"]
[Date "2023.12.12"]
[Round "4"]
[White "Ashraf, Artin"]
[Black "Vestby-Ellingsen, Mads"]
[Result "1-0"]
[Board "44"]
[TimeControl "180+1"]
[WhiteFideId "22514805"]
[BlackFideId "1520857"]
[WhiteElo "2892"]
[BlackElo "2585"]
[WhiteTeam "IRI"]
[BlackTeam "NOR"]
[WhiteClock "0:01:51"]
[BlackClock "0:01:29"]

1. e4 {[%clk 0:03:00]}  e5 {[%clk 0:02:57]} 2. Nf3 {[%clk 0:03:00]}  Nc6 {[%clk 0:02:57]} 3. Bb5 {[%clk 0:03:01]}  g6 {[%clk 0:02:57]} 4. c3 {[%clk 0:02:54]}  Bg7 {[%clk 0:02:54]} 5. d4 {[%clk 0:02:53]}  exd4 {[%clk 0:02:54]} 6. cxd4 {[%clk 0:02:54]}  a6 {[%clk 0:02:46]} 7. Ba4 {[%clk 0:02:51]}  b5 {[%clk 0:02:44]} 8. Bb3 {[%clk 0:02:51]}  d6 {[%clk 0:02:41]} 9. h3 {[%clk 0:02:08]}  Nge7 {[%clk 0:02:35]} 10. O-O {[%clk 0:02:07]}  O-O {[%clk 0:02:33]} 11. Nc3 {[%clk 0:02:06]}  Na5 {[%clk 0:02:27]} 12. Bg5 {[%clk 0:02:05]}  h6 {[%clk 0:02:24]} 13. Bh4 {[%clk 0:02:05]}  Nxb3 {[%clk 0:02:21]} 14. Qxb3 {[%clk 0:02:03]}  Bb7 {[%clk 0:02:21]} 15. Rad1 {[%clk 0:01:58]}  Qd7 {[%clk 0:02:17]} 16. Rfe1 {[%clk 0:01:57]}  Nc6 {[%clk 0:02:02]} 17. Nd5 {[%clk 0:01:55]}  Na5 {[%clk 0:01:59]} 18. Qc3 {[%clk 0:01:54]}  Nc4 {[%clk 0:01:32]} 19. Nf6+ {[%clk 0:01:52]}  Kh8 {[%clk 0:01:29]} 20. Nxd7 {[%clk 0:01:51]} 1-0

[Event "December 12 Early 2023"]
[Site "https://www.chess.com"]
[Date "2023.12.12"]
[Round "4"]
[White "Galchenko, Matvey"]
[Black "Kuzmin, Roman"]
[Result "1-0"]
[Board "45"]
[TimeControl "180+1"]
[WhiteFideId "24175480"]
[BlackFideId "44134932"]
[WhiteElo "2887"]
[BlackElo "2584"]
[WhiteTeam "FID"]
[BlackTeam "RUS"]
[WhiteClock "0:00:14"]
[BlackClock "0:00:00"]

1. e4 {[%clk 0:03:00]}  c5 {[%clk 0:02:59]} 2. c3 {[%clk 0:02:54]}  d5 {[%clk 0:02:59]} 3. exd5 {[%clk 0:02:55]}  Qxd5 {[%clk 0:03:00]} 4. d4 {[%clk 0:02:56]}  Nc6 {[%clk 0:03:01]} 5. Nf3 {[%clk 0:02:56]}  Nf6 {[%clk 0:03:01]} 6. dxc5 {[%clk 0:02:53]}  Qxd1+ {[%clk 0:03:01]} 7. Kxd1 {[%clk 0:02:54]}  Bf5 {[%clk 0:03:01]} 8. Be3 {[%clk 0:02:45]}  e5 {[%clk 0:03:01]} 9. Bb5 {[%clk 0:02:40]}  O-O-O+ {[%clk 0:03:01]} 10. Kc1 {[%clk 0:02:40]}  Nd5 {[%clk 0:02:57]} 11. Bxc6 {[%clk 0:02:05]}  bxc6 {[%clk 0:02:58]} 12. b4 {[%clk 0:02:06]}  f6 {[%clk 0:02:35]} 13. Kb2 {[%clk 0:01:50]}  g5 {[%clk 0:02:23]} 14. h3 {[%clk 0:01:36]}  Be7 {[%clk 0:01:31]} 15. Nbd2 {[%clk 0:01:32]}  h5 {[%clk 0:01:28]} 16. Nc4 {[%clk 0:01:25]}  Bd3 {[%clk 0:01:14]} 17. Na5 {[%clk 0:01:24]}  Kc7 {[%clk 0:01:14]} 18. Rae1 {[%clk 0:01:21]}  g4 {[%clk 0:01:09]} 19. hxg4 {[%clk 0:01:14]}  hxg4 {[%clk 0:01:09]} 20. Nd2 {[%clk 0:01:04]}  f5 {[%clk 0:01:09]} 21. Ndc4 {[%clk 0:01:02]}  Bf6 {[%clk 0:00:52]} 22. Kb3 {[%clk 0:01:02]}  f4 {[%clk 0:00:39]} 23. Bd2 {[%clk 0:00:51]}  e4 {[%clk 0:00:39]} 24. Nd6 {[%clk 0:00:46]}  e3 {[%clk 0:00:19]} 25. fxe3 {[%clk 0:00:46]}  fxe3 {[%clk 0:00:20]} 26. Bc1 {[%clk 0:00:38]}  Bxc3 {[%clk 0:00:17]} 27. Rxh8 {[%clk 0:00:30]}  Rxh8 {[%clk 0:00:18]} 28. Rxe3 {[%clk 0:00:29]}  Nxe3 {[%clk 0:00:18]} 29. Bxe3 {[%clk 0:00:29]}  Be1 {[%clk 0:00:09]} 30. Bf4 {[%clk 0:00:26]}  Rf8 {[%clk 0:00:01]} 31. Ndc4+ {[%clk 0:00:20]}  Kd7 {[%clk 0:00:01]} 32. Ne5+ {[%clk 0:00:20]}  Ke6 {[%clk 0:00:02]} 33. Nxd3 {[%clk 0:00:21]}  Kd5 {[%clk 0:00:03]} 34. Bd6 {[%clk 0:00:17]}  Re8 {[%clk 0:00:00]} 35. Nf4+ {[%clk 0:00:14]} 1-0